[Event "Open Nuevo Centro. Jornada 2"]
[Site "Chess.com"]
[Date "2020.06.26"]
[Round "9"]
[White "Kovacevic, Slobodan"]
[Black "Borissov, Julián"]
[Result "1-0"]
[WhiteElo "2104"]
[BlackElo "1863"]
[TimeControl "180+2"]
[EndTime "12:11:57 PDT"]
[Termination "Victoria de nikko110 por tiempo"]

1. d4 {[%clk 0:03:01.9]} 1... Nf6 {[%clk 0:02:58.8]} 2. Bf4 {[%clk 0:03:00.4]}
2... e6 {[%clk 0:02:50.9]} 3. Nf3 {[%clk 0:02:58.4]} 3... d5 {[%clk 0:02:49.6]}
4. e3 {[%clk 0:02:57.2]} 4... Be7 {[%clk 0:02:50.4]} 5. Nbd2 {[%clk 0:02:55.7]}
5... O-O {[%clk 0:02:51.3]} 6. h3 {[%clk 0:02:54.4]} 6... c5 {[%clk 0:02:51.2]}
7. c3 {[%clk 0:02:53.1]} 7... Nc6 {[%clk 0:02:51.7]} 8. Bd3 {[%clk 0:02:51.9]}
8... a6 {[%clk 0:02:51.7]} 9. a4 {[%clk 0:02:50.3]} 9... Nd7 {[%clk 0:02:17.9]}
10. O-O {[%clk 0:02:46]} 10... f5 {[%clk 0:02:12]} 11. Bh2 {[%clk 0:02:43.6]}
11... c4 {[%clk 0:02:05.3]} 12. Bc2 {[%clk 0:02:35.3]} 12... Nf6 {[%clk
0:00:56.8]} 13. Qe2 {[%clk 0:02:29.5]} 13... Bd7 {[%clk 0:00:53.1]} 14. Kh1
{[%clk 0:02:27.3]} 14... h6 {[%clk 0:00:53.1]} 15. Rg1 {[%clk 0:02:25.4]} 15...
Be8 {[%clk 0:00:49.4]} 16. g4 {[%clk 0:02:23.7]} 16... fxg4 {[%clk 0:00:49.4]}
17. hxg4 {[%clk 0:02:22.9]} 17... Bd6 {[%clk 0:00:40.7]} 18. Ne5 {[%clk
0:02:20.8]} 18... Bxe5 {[%clk 0:00:38.4]} 19. dxe5 {[%clk 0:02:18.8]} 19... Nh7
{[%clk 0:00:27.8]} 20. f4 {[%clk 0:02:17.2]} 20... Qh4 {[%clk 0:00:27.2]} 21.
Rg3 {[%clk 0:02:14.8]} 21... g5 {[%clk 0:00:23.2]} 22. Qf3 {[%clk 0:02:08.8]}
22... Nxe5 {[%clk 0:00:22.6]} 23. Qg2 {[%clk 0:02:07.6]} 23... gxf4 {[%clk
0:00:19]} 24. Rh3 {[%clk 0:02:06.1]} 24... Qxg4 {[%clk 0:00:20]} 25. Bxf4 {[%clk
0:02:01.1]} 25... Qxg2+ {[%clk 0:00:21.2]} 26. Kxg2 {[%clk 0:01:59]} 26... Ng6
{[%clk 0:00:22]} 27. Bxh6 {[%clk 0:01:55.4]} 27... Rf6 {[%clk 0:00:23]} 28. Rg1
{[%clk 0:01:51.9]} 28... Ngf8 {[%clk 0:00:17.3]} 29. Kh1+ {[%clk 0:01:45.1]}
29... Bg6 {[%clk 0:00:18.2]} 30. Bf4 {[%clk 0:01:38.7]} 30... Kf7 {[%clk
0:00:18.4]} 31. Bxg6+ {[%clk 0:01:24.4]} 31... Rxg6 {[%clk 0:00:18.8]} 32. Rf1
{[%clk 0:01:19.8]} 32... Nf6 {[%clk 0:00:15.1]} 33. Nf3 {[%clk 0:01:18.2]} 33...
N8d7 {[%clk 0:00:14.4]} 34. Bd6 {[%clk 0:01:13.8]} 34... Rag8 {[%clk 0:00:14.7]}
35. Bf4 {[%clk 0:01:07.2]} 35... R8g7 {[%clk 0:00:14]} 36. Be5 {[%clk
0:01:03.4]} 36... Ke7 {[%clk 0:00:10.3]} 37. Bd4 {[%clk 0:01:00.7]} 37... Rh7
{[%clk 0:00:08.5]} 38. Rxh7+ {[%clk 0:00:54.4]} 38... Nxh7 {[%clk 0:00:10.4]}
39. Rf2 {[%clk 0:00:51.7]} 39... Kd6 {[%clk 0:00:05.6]} 40. a5 {[%clk
0:00:47.6]} 40... e5 {[%clk 0:00:06.1]} 41. Ba7 {[%clk 0:00:41.8]} 41... Rf6
{[%clk 0:00:06.5]} 42. Kg1 {[%clk 0:00:39]} 42... e4 {[%clk 0:00:07.4]} 43. Nd4
{[%clk 0:00:36.9]} 43... Rg6+ {[%clk 0:00:08.6]} 44. Kf1 {[%clk 0:00:35.1]}
44... Ne5 {[%clk 0:00:09.6]} 45. Ke2 {[%clk 0:00:33.5]} 45... Nd3 {[%clk
0:00:09.7]} 46. Rf7 {[%clk 0:00:29.6]} 46... Rg2+ {[%clk 0:00:09.9]} 47. Kf1
{[%clk 0:00:27.8]} 47... Rxb2 {[%clk 0:00:10.6]} 48. Rxh7 {[%clk 0:00:25.1]}
48... Re2 {[%clk 0:00:11.4]} 49. Kxe2 {[%clk 0:00:22]} 1